bitfinex/quotes_BTCUSD_20220212
["timestamp","ask_amount","ask_price","bid_price","bid_amount"]
[1644633857456,0.44356919,42480.0,42479.0,0.27004536]
[1644633858106,0.49356919,42480.0,42479.0,0.27004536]
[1644633858506,0.69356919,42480.0,42479.0,0.27004536]
[1644633859705,0.87445704,42480.0,42479.0,0.27004536]
[1644633860105,0.82445704,42480.0,42479.0,0.27004536]
[1644633860305,0.86945704,42480.0,42479.0,0.27004536]
[1644633861860,0.81945704,42480.0,42479.0,0.27004536]
[1644633862060,0.63856919,42480.0,42479.0,0.27004536]
[1644633862660,0.82386327,42480.0,42479.0,0.27004536]
[1644633865065,0.81886327,42480.0,42479.0,0.27004536]
[1644633865267,0.63356919,42480.0,42479.0,0.27004536]
[1644633865704,0.58626919,42480.0,42479.0,0.27004536]
[1644633867105,0.88642878,42480.0,42479.0,0.27004536]
[1644633868307,0.58626919,42480.0,42479.0,0.27004536]
[1644633869352,0.88648458,42480.0,42479.0,0.27004536]
[1644633869755,0.88148458,42480.0,42479.0,0.27004536]
[1644633870552,0.58126919,42480.0,42479.0,0.27004536]
[1644633876108,0.93142181,42480.0,42479.0,0.27004536]
[1644633882610,0.84090003,42480.0,42479.0,0.27004536]
[1644633886353,0.72829054,42480.0,42479.0,0.27004536]
[1644633888203,0.82829054,42480.0,42479.0,0.27004536]
[1644633890505,0.82818047,42480.0,42479.0,0.27004536]
[1644633901063,1.06907298,42480.0,42479.0,0.27004536]
[1644633901362,0.329519,42478.0,42471.0,0.1156]
[1644633901562,0.329519,42475.0,42471.0,0.1156]
[1644633901760,0.34483912,42474.0,42463.0,0.3664]
[1644633901961,0.25030523,42466.0,42462.0,0.5906]
[1644633902159,0.25030523,42466.0,42463.0,0.0001]
[1644633902160,0.329519,42465.0,42463.0,0.0001]
[1644633902359,0.329519,42465.0,42461.0,0.0001]
[1644633902559,0.20023357,42463.0,42461.0,0.0001]
[1644633902759,0.329519,42462.0,42461.0,0.0001]
[1644633903610,0.569519,42462.0,42461.0,0.0001]
[1644633903810,0.569519,42462.0,42460.0,0.0001]
[1644633904411,0.329519,42461.0,42460.0,0.0001]
[1644633906213,0.24,42462.0,42460.0,0.0001]
[1644633906414,0.329519,42461.0,42460.0,0.0001]
[1644633909164,0.40047192,42461.0,42460.0,0.0001]
[1644633910165,0.07095292,42461.0,42460.0,0.0001]
[1644633910423,0.40047192,42461.0,42459.0,0.02701084]
[1644633910622,0.07095292,42461.0,42459.0,0.02701084]
[1644633911324,0.329519,42460.0,42459.0,0.02701084]
[1644633913126,0.07095292,42461.0,42459.0,0.02701084]
[1644633913627,0.329519,42460.0,42458.0,0.00051977]
[1644633914663,0.329519,42460.0,42456.0,0.20034378]
[1644633914966,0.329519,42460.0,42457.0,0.00051977]
[1644633915765,0.329519,42460.0,42457.0,0.0001]
[1644633917270,0.56843677,42458.0,42457.0,0.0001]
[1644633917469,0.329519,42457.0,42456.0,0.00051958]
[1644633917916,0.629519,42457.0,42456.0,0.00051958]
[1644633918115,0.85929836,42457.0,42456.0,0.00051958]
[1644633918314,0.21784331,42450.0,42449.0,0.00030323]
[1644633918517,0.54736231,42450.0,42449.0,0.0001]
[1644633918714,0.329519,42449.0,42448.0,0.00030323]
[1644633918915,0.329519,42449.0,42448.0,0.0001]
[1644633919115,0.329519,42449.0,42448.0,0.00030323]
[1644633919314,0.329519,42449.0,42448.0,0.0001]
[1644633919515,0.40047192,42449.0,42446.0,0.00030323]
[1644633919715,0.40047192,42449.0,42446.0,0.0006192]
[1644633919915,0.40047192,42449.0,42446.0,0.00082243]
[1644633920117,0.47332597,42449.0,42446.0,0.00082243]
[1644633920719,0.47332597,42449.0,42446.0,0.00030323]
[1644633921764,0.57332597,42449.0,42446.0,0.00020323]
[1644633921963,0.57332597,42449.0,42445.0,0.00084161]
[1644633922168,0.50047192,42449.0,42445.0,0.00063838]
[1644633922365,0.50047192,42449.0,42445.0,0.00053838]
[1644633922966,0.50047192,42449.0,42443.0,0.00030323]
[1644633923167,0.50047192,42449.0,42445.0,0.00053838]
[1644633923368,0.56763518,42449.0,42445.0,0.00053838]
[1644633923772,0.83142828,42449.0,42445.0,0.00053838]
[1644633924168,0.83142828,42449.0,42442.0,0.0001]
[1644633924368,0.83142828,42449.0,42445.0,0.00051794]
[1644633924567,0.79595182,42449.0,42445.0,0.00051794]
[1644633924767,0.75547536,42449.0,42445.0,0.00051794]
[1644633924970,0.329519,42446.0,42445.0,0.00051794]
[1644633925409,0.329519,42446.0,42442.0,0.00030323]
[1644633925708,0.58730019,42446.0,42441.0,0.00020323]
[1644633925908,0.58730019,42446.0,42440.0,0.0001]
[1644633926111,0.58730019,42446.0,42440.0,0.00030323]
[1644633926410,0.58730019,42446.0,42441.0,0.06522519]
[1644633926609,0.58730019,42446.0,42442.0,0.0001]
[1644633927211,0.58730019,42446.0,42442.0,0.00030323]
[1644633927409,0.58730019,42446.0,42440.0,0.0001]
[1644633927610,0.58730019,42446.0,42440.0,0.00030323]
[1644633928011,0.58730019,42446.0,42441.0,0.00052614]
[1644633929018,0.58730019,42446.0,42440.0,0.00030323]
[1644633929263,0.58730019,42446.0,42441.0,0.00052614]
[1644633929463,0.82730019,42446.0,42441.0,0.00052614]
[1644633930065,0.82730019,42446.0,42442.0,0.00219846]
[1644633930263,0.329548,42443.0,42442.0,0.00219846]
[1644633930963,0.329548,42443.0,42442.0,0.00240169]
[1644633931666,0.329548,42443.0,42442.0,0.00219846]
[1644633932907,0.07095292,42444.0,42442.0,0.00219846]
[1644633932908,0.07095292,42444.0,42443.0,0.02096413]
[1644633933109,0.40050792,42444.0,42443.0,0.02096413]
[1644633933316,0.40050792,42444.0,42443.0,0.02116736]
[1644633935514,0.40050792,42444.0,42443.0,0.02096413]
[1644633938972,0.40050792,42444.0,42443.0,0.02116736]
[1644633939171,0.40050792,42444.0,42443.0,0.02096413]
[1644633940174,0.66659046,42444.0,42443.0,0.02096413]
[1644633941213,0.71389046,42444.0,42443.0,0.02096413]
[1644633942217,0.44780792,42444.0,42443.0,0.02096413]
[1644633942414,0.49780792,42444.0,42443.0,0.02096413]
[1644633942615,0.59780792,42444.0,42443.0,0.02096413]
[1644633943714,0.64780792,42444.0,42443.0,0.02096413]
[1644633944365,0.92695676,42444.0,42443.0,0.02096413]
[1644633944566,0.64780792,42444.0,42443.0,0.02096413]
[1644633944768,0.64780792,42444.0,42443.0,0.02126736]
[1644633944969,0.55050792,42444.0,42443.0,0.02126736]
[1644633945767,0.55050792,42444.0,42443.0,0.02096413]
[1644633946969,0.45050792,42444.0,42443.0,0.02096413]
[1644633947376,0.40050792,42444.0,42443.0,0.02096413]
[1644633947573,0.07095292,42444.0,42443.0,0.02096413]
[1644633947774,0.40050792,42444.0,42443.0,0.02096413]
[1644633948211,0.07095292,42444.0,42443.0,0.02096413]
[1644633949211,0.40050792,42444.0,42443.0,0.02096413]
[1644633949412,0.07095292,42444.0,42443.0,0.02096413]
[1644633949613,0.40050792,42444.0,42443.0,0.02096413]
[1644633949813,0.07095292,42444.0,42443.0,0.02096413]
[1644633950020,0.40050792,42444.0,42443.0,0.02096413]
[1644633950213,0.66469061,42444.0,42443.0,0.02096413]
[1644633950813,0.66469061,42444.0,42443.0,0.02116736]
[1644633951016,0.71469061,42444.0,42443.0,0.02116736]
[1644633951214,0.94552469,42444.0,42443.0,0.02096413]
[1644633953567,0.82813369,42444.0,42443.0,0.02096413]
[1644633955172,0.87813369,42444.0,42443.0,0.02096413]
[1644633956315,0.87214379,42443.0,42442.0,0.00020323]
[1644633956513,0.329556,42442.0,42441.0,0.00051721]
[1644633956714,0.68903389,42442.0,42436.0,0.00030323]
[1644633957015,0.329556,42440.0,42436.0,0.00030323]
[1644633957215,0.08427923,42437.0,42433.0,0.00020323]
[1644633957415,0.78756387,42436.0,42432.0,0.03020323]
[1644633958014,0.52768958,42436.0,42432.0,0.03072048]
[1644633958215,0.783973,42436.0,42432.0,0.03072048]
[1644633958415,0.329556,42434.0,42432.0,0.03072048]
[1644633958616,0.429556,42434.0,42432.0,0.03072048]
[1644633958815,0.58775372,42433.0,42432.0,0.03072048]
[1644633959014,0.58775372,42433.0,42432.0,0.03020323]
[1644633962784,0.329556,42433.0,42432.0,0.03020323]
[1644633963017,0.569556,42433.0,42432.0,0.03020323]
[1644633964117,0.719556,42433.0,42432.0,0.03020323]
[1644633964718,0.766856,42433.0,42432.0,0.03020323]
[1644633968689,0.65,42431.0,42426.0,0.00264014]
[1644633968892,0.329556,42429.0,42426.0,0.00254014]
[1644633969091,0.0473,42428.0,42426.0,0.00254014]
[1644633969291,0.329556,42427.0,42426.0,0.00254014]
[1644633969493,0.379556,42427.0,42426.0,0.00254014]
[1644633969695,0.479556,42427.0,42426.0,0.00254014]
[1644633970296,0.40010083,42426.0,42422.0,0.00020423]
[1644633970518,0.40010083,42426.0,42421.0,0.00994]
[1644633970722,0.50010083,42426.0,42421.0,0.00994]
[1644633970918,0.50010083,42426.0,42421.0,0.01014423]
[1644633971219,0.50010083,42426.0,42421.0,0.0104556]
[1644633971523,0.50010083,42426.0,42421.0,0.01065983]
[1644633971719,0.50010083,42426.0,42421.0,0.0104556]
[1644633971920,0.50010083,42426.0,42421.0,0.01065983]
[1644633972120,0.50010083,42426.0,42421.0,0.0104556]
[1644633972320,0.50010083,42426.0,42421.0,0.01014423]
[1644633972522,0.50010083,42426.0,42421.0,0.0104556]
[1644633972722,0.50010083,42426.0,42421.0,0.01065983]
[1644633972920,0.50010083,42426.0,42421.0,0.0104556]
[1644633973121,0.50010083,42426.0,42421.0,0.01065983]
[1644633973323,0.50010083,42426.0,42421.0,0.0104556]
[1644633973521,0.50010083,42426.0,42421.0,0.01014423]
[1644633973722,0.50010083,42426.0,42421.0,0.0104556]
[1644633973921,0.50010083,42426.0,42421.0,0.01065983]
[1644633974176,0.0473,42425.0,42421.0,0.0104556]
[1644633974371,0.329556,42424.0,42421.0,0.0104556]
[1644633974568,0.30151286,42423.0,42421.0,0.0104556]
[1644633974768,0.57112722,42422.0,42421.0,0.00994]
[1644633974967,0.61842722,42422.0,42421.0,0.00994]
[1644633975167,1.01757448,42422.0,42421.0,0.00994]
[1644633977569,0.526856,42422.0,42421.0,0.00994]
[1644633978225,0.476856,42422.0,42421.0,0.00994]
[1644633978424,0.5919,42430.0,42421.0,0.00994]
[1644633978425,0.329556,42428.0,42421.0,0.00994]
[1644633978630,0.1208,42429.0,42421.0,0.00994]
[1644633978631,0.2191316,42433.0,42423.0,0.20681632]
[1644633978823,0.58804162,42434.0,42421.0,0.01014423]
[1644633978824,0.329556,42432.0,42424.0,0.0001]
[1644633979022,0.329556,42432.0,42421.0,0.01004]
[1644633979225,0.23501191,42431.0,42428.0,0.08231023]
[1644633979423,0.329556,42430.0,42429.0,0.0001]
[1644633979623,0.329556,42430.0,42422.0,0.00020423]
[1644633980023,0.329556,42428.0,42422.0,0.00020423]
[1644633980224,0.379556,42428.0,42421.0,0.01024423]
[1644633980528,0.479556,42428.0,42427.0,0.08634574]
[1644633980726,0.479556,42428.0,42427.0,0.08644574]
[1644633981129,0.1,42434.0,42427.0,0.08644574]
[1644633981428,0.9779,42438.0,42428.0,0.0001]
[1644633981682,0.329556,42437.0,42428.0,0.00030423]
[1644633981873,0.329556,42437.0,42428.0,0.0001]
[1644633982075,0.19634242,42436.0,42428.0,0.00083514]
[1644633982275,0.329556,42435.0,42428.0,0.00063091]
[1644633982472,0.329556,42435.0,42428.0,0.00083514]
[1644633982674,0.479556,42435.0,42428.0,0.00083514]
[1644633982874,0.209701,42434.0,42428.0,0.00083514]
[1644633983174,0.209701,42434.0,42428.0,0.00030423]
[1644633983374,0.209701,42434.0,42428.0,0.00083513]
[1644633984375,0.209701,42434.0,42428.0,0.00030423]
[1644633984575,0.209701,42434.0,42428.0,0.00083513]
[1644633984775,0.24322117,42429.0,42428.0,0.00083513]
[1644633984976,0.57277717,42429.0,42428.0,0.00083513]
[1644633985621,0.57277717,42429.0,42428.0,0.00030423]
[1644633986123,0.569556,42429.0,42428.0,0.00030423]
[1644633986523,0.24,42429.0,42428.0,0.00030423]
[1644633986723,0.24,42429.0,42428.0,0.29392263]
[1644633986922,0.24,42429.0,42428.0,0.49646479]
[1644633987123,0.24,42429.0,42428.0,0.20284639]
[1644633987522,0.569556,42429.0,42428.0,0.20284639]
[1644633987723,0.24,42429.0,42428.0,0.20284639]
[1644633988526,0.569556,42429.0,42428.0,0.20284639]
[1644633988928,0.24,42429.0,42428.0,0.20284639]
[1644633989177,0.569556,42429.0,42428.0,0.20284639]
[1644633989572,0.24,42429.0,42428.0,0.20284639]
[1644633989771,0.569556,42429.0,42428.0,0.00030423]
[1644633992677,0.56946412,42429.0,42428.0,0.00030423]
[1644633993917,0.329556,42428.0,42427.0,0.08164997]
[1644633995120,0.329556,42428.0,42421.0,0.50314466]
[1644633995320,0.329556,42428.0,42425.0,0.00051258]
[1644633996325,0.329556,42428.0,42425.0,0.07527265]
[1644633999175,0.329556,42428.0,42426.0,0.0001]
[1644634000176,0.329556,42428.0,42425.0,0.00051259]
[1644634000614,0.209633,42428.0,42425.0,0.00051259]
[1644634001014,0.329614,42427.0,42425.0,0.00051259]
[1644634001220,0.329614,42427.0,42423.0,0.0001]
[1644634001417,0.429614,42427.0,42424.0,0.00051259]
[1644634002019,0.20695847,42426.0,42424.0,0.00051259]
[1644634002216,0.54829206,42425.0,42424.0,0.00051259]
[1644634002417,0.329614,42423.0,42421.0,0.00994]
[1644634002915,0.209633,42422.0,42421.0,0.00994]
[1644634003618,0.209633,42422.0,42421.0,0.00494]
[1644634009217,0.56854674,42422.0,42421.0,0.00494]
[1644634009418,0.66854674,42422.0,42421.0,0.00494]
[1644634010219,0.74084478,42422.0,42421.0,0.00494]
[1644634014278,0.78814478,42422.0,42421.0,0.00494]
[1644634015521,0.71584674,42422.0,42421.0,0.00494]
[1644634020673,0.456933,42422.0,42421.0,0.00494]
[1644634020875,0.409633,42422.0,42421.0,0.00494]
[1644634022775,0.209633,42422.0,42421.0,0.00494]
[1644634023030,0.3,42428.0,42421.0,0.00494]
[1644634023227,0.03441745,42429.0,42422.0,0.329614]
[1644634023426,0.03441745,42429.0,42424.0,0.08046331]
[1644634023626,0.03441745,42429.0,42425.0,0.0001]
[1644634024227,0.03441745,42429.0,42425.0,0.00065098]
[1644634024428,0.329614,42428.0,42425.0,0.00065098]
[1644634024827,0.03441745,42429.0,42425.0,0.00065098]
[1644634025026,0.329614,42428.0,42425.0,0.00031798]
[1644634025226,0.329614,42428.0,42424.0,0.08046331]
[1644634027170,0.03346626,42429.0,42424.0,0.08046331]
[1644634027771,0.03346626,42429.0,42425.0,0.31280605]
[1644634027972,0.03346626,42429.0,42424.0,0.08046331]
[1644634028372,0.329614,42428.0,42425.0,0.29100181]
[1644634028575,0.329614,42428.0,42424.0,0.08046331]
[1644634029271,0.03346626,42429.0,42424.0,0.08046331]
[1644634030173,0.03346626,42429.0,42425.0,0.0001]
[1644634030733,0.05,42433.0,42432.0,0.00496707]
[1644634030933,0.379614,42433.0,42432.0,0.00496707]
[1644634031133,0.6181,42434.0,42432.0,0.00496707]
[1644634031335,0.329614,42433.0,42432.0,0.00506707]
[1644634031835,0.64529337,42433.0,42432.0,0.00506707]
[1644634032036,0.379614,42433.0,42432.0,0.00506707]
[1644634032537,0.64308614,42433.0,42432.0,0.00506707]
[1644634032834,0.05,42433.0,42432.0,0.00506707]
[1644634033041,0.466,42438.0,42433.0,0.329614]
[1644634033042,0.366,42438.0,42433.0,0.329614]
[1644634033243,0.416,42438.0,42434.0,0.30127611]
[1644634033537,0.416,42438.0,42435.0,0.0001]
[1644634033736,0.1732,42441.0,42435.0,0.0001]
[1644634033937,0.05,42441.0,42435.0,0.0001]
[1644634034186,0.25079466,42443.0,42435.0,0.0001]
[1644634034187,0.35079466,42443.0,42435.0,0.0001]
[1644634034575,0.45079466,42443.0,42435.0,0.0001]
[1644634034779,0.40024357,42443.0,42432.0,0.00506707]
[1644634034975,0.40079468,42443.0,42432.0,0.00506707]
[1644634035176,0.329614,42441.0,42432.0,0.00506707]
[1644634035376,0.15,42441.0,42432.0,0.00506707]
[1644634035781,0.329614,42440.0,42432.0,0.00506707]
[1644634035979,0.15,42441.0,42432.0,0.00506707]
[1644634036380,0.05,42439.0,42432.0,0.00506707]
[1644634036782,0.379614,42438.0,42432.0,0.00506707]
[1644634036982,0.329614,42440.0,42439.0,0.06570208]
[1644634037183,0.05,42441.0,42439.0,0.04721629]
[1644634037383,0.15,42443.0,42439.0,0.04711629]
[1644634037384,0.20275539,42443.0,42439.0,0.04711629]
[1644634038030,0.10275539,42443.0,42439.0,0.04711629]
[1644634038231,0.05,42442.0,42439.0,0.04711629]
[1644634038832,0.00055113,42443.0,42439.0,0.04711629]
[1644634039532,0.2502032,42444.0,42439.0,0.04711629]
[1644634039732,0.33016513,42443.0,42439.0,0.04711629]
[1644634040035,0.40075433,42443.0,42439.0,0.04711629]
[1644634040235,0.329614,42441.0,42439.0,0.04711629]
[1644634040635,0.05,42440.0,42439.0,0.04711629]
[1644634041234,0.20075432,42443.0,42439.0,0.04711629]
[1644634041235,0.00055112,42443.0,42439.0,0.04711629]
[1644634041438,0.00055112,42443.0,42441.0,0.329614]
[1644634041685,0.00055112,42443.0,42439.0,0.04711629]
[1644634041979,0.2002032,42447.0,42439.0,0.04711629]
[1644634042179,0.00055113,42443.0,42439.0,0.04711629]
[1644634042381,0.00055113,42443.0,42440.0,0.23563909]
[1644634043180,0.2002032,42448.0,42440.0,0.23563909]
[1644634043381,0.00055113,42444.0,42440.0,0.23563909]
[1644634044382,0.30314755,42448.0,42440.0,0.23563909]
[1644634044682,0.30314755,42448.0,42446.0,0.06999375]
[1644634045082,0.25419221,42447.0,42446.0,0.06999375]
[1644634045282,0.30419221,42447.0,42446.0,0.06999375]
[1644634045527,0.05,42447.0,42446.0,0.06999375]
[1644634045726,0.05,42448.0,42446.0,0.06999375]
[1644634046627,0.00050876,42449.0,42446.0,0.06999375]
[1644634046828,0.1,42452.0,42447.0,0.0001]
[1644634047027,0.00050876,42449.0,42447.0,0.0001]
[1644634047430,0.329614,42448.0,42447.0,0.0001]
[1644634047626,0.25138807,42451.0,42447.0,0.0001]
[1644634047826,0.35138807,42451.0,42447.0,0.0001]
[1644634048227,0.2,42451.0,42447.0,0.0001]
[1644634049277,0.1,42451.0,42447.0,0.0001]
[1644634049680,0.4002032,42453.0,42447.0,0.0001]
[1644634050378,0.2,42453.0,42447.0,0.0001]
[1644634050578,0.00035073,42452.0,42447.0,0.0001]
[1644634050879,0.329614,42451.0,42447.0,0.0001]
[1644634051077,0.00035073,42452.0,42447.0,0.0001]
[1644634051678,0.25434867,42452.0,42447.0,0.0001]
[1644634051977,0.4946994,42452.0,42447.0,0.0001]
[1644634052379,0.5946994,42452.0,42447.0,0.0001]
[1644634052780,0.59434867,42452.0,42447.0,0.0001]
[1644634053023,0.5946994,42452.0,42447.0,0.0001]
[1644634054025,0.59434867,42452.0,42443.0,0.0001]
[1644634054225,0.59490004,42452.0,42443.0,0.0001]
[1644634054924,0.34055137,42452.0,42448.0,0.07075209]
[1644634055124,0.25315226,42451.0,42449.0,0.0001]
[1644634055323,0.35315226,42451.0,42449.0,0.0001]
[1644634055724,0.45315226,42451.0,42449.0,0.0001]
[1644634056125,0.45315226,42451.0,42442.0,0.25030127]
[1644634056126,0.23360917,42449.0,42443.0,0.0001]
[1644634056326,0.329614,42448.0,42442.0,0.0001]
[1644634056527,0.23360917,42449.0,42442.0,0.0001]
[1644634056798,0.28360917,42449.0,42441.0,0.0001]
[1644634057202,0.24687629,42447.0,42441.0,0.0001]
[1644634057498,0.24687629,42447.0,42438.0,0.0001]
[1644634057499,0.25145046,42446.0,42438.0,0.0001]
[1644634057698,0.25145046,42446.0,42435.0,0.0001]
[1644634057900,0.25145046,42446.0,42436.0,0.00055153]
[1644634058297,0.329614,42445.0,42436.0,0.00055153]
[1644634058501,0.06394761,42445.0,42438.0,0.07909166]
[1644634058698,0.06394761,42445.0,42439.0,0.0001]
[1644634058899,0.329614,42444.0,42439.0,0.0001]
[1644634060930,0.05,42446.0,42435.0,0.06724159]
[1644634060931,0.65,42443.0,42435.0,0.06724159]
[1644634063130,0.329614,42443.0,42435.0,0.06724159]
[1644634063730,0.329614,42443.0,42435.0,0.06224159]
[1644634064191,0.00055139,42444.0,42435.0,0.06224159]
[1644634064784,0.5723079,42446.0,42435.0,0.06224159]
[1644634064985,0.00055139,42444.0,42435.0,0.06224159]
[1644634066084,0.5723079,42446.0,42436.0,0.0001]
[1644634066284,0.00055139,42444.0,42436.0,0.0001]
[1644634067286,0.5723079,42446.0,42436.0,0.0001]
[1644634067487,0.00055139,42444.0,42436.0,0.0001]
[1644634068427,0.2002032,42445.0,42436.0,0.0001]
[1644634068727,0.329614,42443.0,42436.0,0.0001]
[1644634068928,0.209633,42441.0,42436.0,0.0001]
[1644634069127,0.209633,42441.0,42434.0,0.00055152]
[1644634069330,0.4098362,42441.0,42434.0,0.00055152]
[1644634069529,0.4098362,42441.0,42433.0,0.0001]
[1644634069729,0.256265,42439.0,42434.0,0.0005515]
[1644634069930,0.07158256,42436.0,42434.0,0.0005515]
[1644634070228,0.209633,42435.0,42434.0,0.0005515]
[1644634070830,0.209633,42435.0,42432.0,0.00496707]
[1644634071029,0.209633,42435.0,42432.0,0.00551857]
[1644634072083,0.209633,42435.0,42432.0,0.00496707]
[1644634072980,0.20457135,42438.0,42434.0,0.2640731]
[1644634073182,0.3002032,42441.0,42435.0,0.0001]
[1644634073481,0.3002032,42441.0,42434.0,0.2640731]
[1644634073482,0.2399,42435.0,42434.0,0.26462459]
[1644634074281,0.2399,42435.0,42434.0,0.00055149]
[1644634074483,0.2399,42435.0,42432.0,0.00496707]
[1644634074686,0.2399,42435.0,42432.0,0.00551857]
[1644634075730,0.2399,42435.0,42432.0,0.00496707]
[1644634077336,0.329614,42434.0,42432.0,0.00496707]
[1644634077533,0.2399,42435.0,42432.0,0.00496707]
[1644634079678,0.329614,42434.0,42432.0,0.00496707]
[1644634081081,0.2399,42435.0,42432.0,0.00496707]
[1644634081291,0.329614,42434.0,42432.0,0.00496707]
[1644634083328,0.2399,42435.0,42432.0,0.00496707]
[1644634083528,0.329582,42434.0,42432.0,0.00496707]
[1644634084629,0.2399,42435.0,42432.0,0.00496707]
[1644634085631,0.329582,42434.0,42432.0,0.00496707]
[1644634085831,0.2399,42435.0,42432.0,0.00496707]
[1644634087892,0.2399,42435.0,42434.0,0.2595885]
[1644634088093,0.2399,42435.0,42434.0,0.5892705]
[1644634088293,0.2399,42435.0,42434.0,0.2596885]
[1644634090299,0.2399,42435.0,42434.0,0.50441726]
[1644634090529,0.2399,42435.0,42434.0,0.2596885]
[1644634091131,0.2399,42435.0,42434.0,0.2027655]
[1644634105186,0.2399,42435.0,42434.0,0.69631862]
[1644634106731,0.2399,42435.0,42434.0,0.40307638]
[1644634110891,0.21465722,42435.0,42434.0,0.40307638]
[1644634114435,0.21465722,42435.0,42434.0,0.20041088]
[1644634114633,0.21465722,42435.0,42434.0,0.0001]
[1644634115037,0.54423922,42435.0,42433.0,0.0001]
[1644634115238,0.54423922,42435.0,42432.0,0.00506707]
[1644634115239,0.21465722,42435.0,42432.0,0.00506707]
[1644634115535,0.22401179,42434.0,42432.0,0.0054758]
[1644634115735,0.329582,42433.0,42432.0,0.0054758]
[1644634116535,0.329582,42433.0,42432.0,0.00496707]
[1644634118289,0.42421499,42434.0,42432.0,0.00496707]
[1644634118496,0.329582,42433.0,42432.0,0.00496707]
[1644634118690,0.5297852,42433.0,42432.0,0.00496707]
[1644634119293,0.329582,42433.0,42432.0,0.00496707]
[1644634119492,0.5797852,42433.0,42432.0,0.00496707]
[1644634122835,0.379582,42433.0,42432.0,0.00496707]
[1644634123133,0.5297852,42433.0,42432.0,0.00496707]
[1644634123335,0.329582,42433.0,42432.0,0.00496707]
[1644634124382,0.5297852,42433.0,42432.0,0.00496707]
[1644634125079,0.5797852,42433.0,42432.0,0.00496707]
[1644634125280,0.379582,42433.0,42432.0,0.00496707]
[1644634127579,0.5797852,42433.0,42432.0,0.00496707]
[1644634128234,0.379582,42433.0,42432.0,0.00496707]
[1644634130334,0.37939049,42433.0,42432.0,0.00496707]
[1644634131433,0.57959369,42433.0,42432.0,0.00496707]
[1644634131682,0.2002032,42433.0,42432.0,0.00496707]
[1644634131880,0.5297852,42433.0,42432.0,0.00496707]
[1644634132082,0.5297852,42433.0,42432.0,0.00489993]
[1644634132279,0.329582,42433.0,42432.0,0.00489993]
[1644634133780,0.5297852,42433.0,42432.0,0.00489993]
[1644634134185,0.329582,42433.0,42432.0,0.00489993]
[1644634134581,0.5297852,42433.0,42432.0,0.00489993]
[1644634135182,0.329582,42433.0,42432.0,0.00489993]
[1644634136740,0.5297852,42433.0,42432.0,0.00489993]
[1644634137039,0.3919422,42433.0,42432.0,0.00489993]
[1644634138240,0.39206292,42433.0,42432.0,0.00489993]
[1644634139180,0.39206292,42433.0,42431.0,0.0001]
[1644634139384,0.329582,42432.0,42431.0,0.0001]
[1644634140985,0.329582,42432.0,42430.0,0.0001]
[1644634147485,0.21465722,42435.0,42430.0,0.0001]
[1644634148083,0.329582,42434.0,42430.0,0.00058102]
[1644634148284,0.191739,42434.0,42430.0,0.00058102]
[1644634149088,0.191739,42434.0,42430.0,0.0001]
[1644634149286,0.191739,42434.0,42430.0,0.00058102]
[1644634150287,0.329582,42434.0,42430.0,0.0001]
[1644634150532,0.329582,42434.0,42430.0,0.00058102]
[1644634151135,0.21465722,42435.0,42432.0,0.329582]
[1644634151337,0.21465722,42435.0,42433.0,0.0001]
[1644634151534,0.21465722,42435.0,42434.0,0.376882]
[1644634151732,0.21465722,42435.0,42434.0,0.376982]
[1644634152131,0.21465722,42435.0,42434.0,0.62441163]
[1644634153434,0.21465722,42435.0,42434.0,0.91622898]
[1644634157936,0.21465722,42435.0,42434.0,0.82494616]
[1644634158337,0.00024215,42443.0,42436.0,0.329582]
[1644634158537,0.00024215,42445.0,42438.0,0.329582]
[1644634158739,0.20032392,42447.0,42438.0,0.329582]
[1644634158740,0.00024215,42443.0,42441.0,0.21025657]
[1644634158937,0.24801513,42447.0,42442.0,0.329682]
[1644634158938,0.00048091,42444.0,42442.0,0.329682]
[1644634159140,0.00048091,42444.0,42443.0,0.0001]
[1644634159740,0.20056607,42447.0,42443.0,0.329682]
[1644634159943,0.00024215,42445.0,42444.0,0.0001]
[1644634160140,0.00048092,42446.0,42442.0,0.0001]
[1644634160440,0.00072307,42446.0,42442.0,0.0001]
[1644634160638,0.00048092,42446.0,42442.0,0.0001]
[1644634161040,0.00024215,42447.0,42442.0,0.0001]
[1644634161241,0.00048091,42446.0,42442.0,0.0001]
[1644634162090,0.00048091,42446.0,42445.0,0.07641148]
[1644634162288,0.00024215,42447.0,42445.0,0.07651148]
[1644634162492,0.20056607,42448.0,42446.0,0.0001]
[1644634162690,0.00024215,42447.0,42446.0,0.0001]
[1644634162889,0.20056607,42448.0,42446.0,0.0001]
[1644634163089,0.24,42447.0,42446.0,0.0001]
[1644634163289,0.24,42447.0,42446.0,0.329682]
[1644634163690,0.24,42447.0,42446.0,0.0001]
[1644634163891,0.24,42447.0,42446.0,0.329682]
[1644634164093,0.24,42447.0,42446.0,0.0001]
[1644634164290,0.24,42447.0,42446.0,0.329682]
[1644634164892,0.24,42447.0,42446.0,0.0001]
[1644634165537,0.24,42447.0,42446.0,0.329682]
[1644634168142,0.2399205,42447.0,42446.0,0.0001]
[1644634168343,0.2399205,42447.0,42446.0,0.329682]
[1644634168943,0.2399205,42447.0,42446.0,0.0001]
[1644634169197,0.2399205,42447.0,42446.0,0.329682]
[1644634169794,0.2399205,42447.0,42446.0,0.0001]
[1644634173937,0.2399205,42447.0,42446.0,0.329682]
[1644634174138,0.2399205,42447.0,42446.0,0.0001]
[1644634176239,0.2399205,42447.0,42446.0,0.329682]
[1644634176442,0.2399205,42447.0,42446.0,0.67417451]
[1644634177885,0.2399205,42447.0,42446.0,0.66659875]
[1644634178090,0.2399205,42447.0,42446.0,0.66562644]
[1644634178487,0.2399205,42447.0,42446.0,0.376982]
[1644634179286,0.2399205,42447.0,42446.0,0.66571303]
[1644634181237,0.2399205,42447.0,42446.0,0.46755544]
[1644634181836,0.2399205,42447.0,42446.0,0.51485544]
[1644634182536,0.2399205,42447.0,42446.0,0.67977128]
[1644634182937,0.2399205,42447.0,42446.0,0.67641]
[1644634183341,0.2399205,42447.0,42446.0,0.67639184]
[1644634183639,0.2399205,42447.0,42446.0,0.67648239]
[1644634185092,0.2399205,42447.0,42446.0,0.38393033]
[1644634185692,0.2399205,42447.0,42446.0,0.376813]
[1644634186491,0.2399205,42447.0,42446.0,0.376913]
[1644634187497,0.2399205,42447.0,42446.0,0.329613]
[1644634187695,0.2399205,42447.0,42446.0,0.0001]
[1644634187938,0.2399205,42447.0,42439.0,0.5001]
[1644634188238,0.2399205,42447.0,42440.0,0.0001]